fUST/lending_fUST_20240806
["ID","MTS","AMOUNT","RATE_DAILY","PERIOD"]
[334298026,1722924640375,-304.821958,0.00033475,7]
[334298027,1722924640385,-646.583938,0.00033475,7]
[334298028,1722924640394,-646.583938,0.00033475,7]
[334298029,1722924640404,-1265.018333,0.00033475,7]
[334298030,1722924640413,-1265.018333,0.00033475,7]
[334298031,1722924640423,-1752.432082,0.00033475,7]
[334298032,1722924640432,-1752.432082,0.00033475,7]
[334298033,1722924640442,-476.092422,0.00033475,7]
[334298034,1722924640451,-215.144831,0.00033475,7]
[334298035,1722924640461,-476.092422,0.00033475,7]
[334298036,1722924640470,-215.144831,0.00033475,7]
[334298037,1722924640479,-1343.276804,0.00033475,7]
[334298038,1722924640489,-1343.276804,0.00033475,7]
[334298039,1722924640498,-353.0,0.00033485,2]
[334298040,1722924640508,-353.0,0.00033485,2]
[334298041,1722924640517,-353.0,0.00033485,2]
[334298042,1722924640531,-353.0,0.00033485,2]
[334298043,1722924640540,-353.0,0.00033485,2]
[334298044,1722924640549,-353.0,0.00033485,2]
[334298045,1722924640557,-353.0,0.00033485,2]
[334298046,1722924640566,-353.0,0.00033485,2]
[334298047,1722924640576,-353.0,0.00033485,2]
[334298048,1722924640585,-353.0,0.00033485,2]
[334298049,1722924640595,-353.0,0.00033485,2]
[334298050,1722924640604,-353.0,0.00033485,2]
[334298051,1722924640614,-353.0,0.00033485,2]
[334298052,1722924640623,-650.0,0.00033485,2]
[334298053,1722924640633,-650.0,0.00033485,2]
[334298054,1722924640642,-650.0,0.00033485,2]
[334298055,1722924640651,-650.0,0.00033485,2]
[334298056,1722924640661,-650.0,0.00033485,2]
[334298057,1722924640670,-650.0,0.00033485,2]
[334298058,1722924640680,-650.0,0.00033485,2]
[334298059,1722924640689,-650.0,0.00033485,2]
[334298060,1722924640699,-650.0,0.00033485,2]
[334298061,1722924640709,-650.0,0.00033485,2]
[334298062,1722924640718,-650.0,0.00033485,2]
[334298063,1722924640728,-650.0,0.00033485,2]
[334298064,1722924640737,-650.0,0.00033485,2]
[334298065,1722924640747,-353.0,0.00033485,2]
[334298066,1722924640756,-353.0,0.00033485,2]
[334298067,1722924640766,-353.0,0.00033485,2]
[334298068,1722924640776,-353.0,0.00033485,2]
[334298069,1722924640796,-353.0,0.00033485,2]
[334298070,1722924640806,-353.0,0.00033485,2]
[334298071,1722924640816,-353.0,0.00033485,2]
[334298072,1722924640826,-353.0,0.00033485,2]
[334298073,1722924640839,-353.0,0.00033485,2]
[334298074,1722924640849,-353.0,0.00033485,2]
[334298075,1722924640859,-353.0,0.00033485,2]
[334298076,1722924640867,-353.0,0.00033485,2]
[334298077,1722924640878,-353.0,0.00033485,2]
[334298078,1722924640887,-353.0,0.00033485,2]
[334298079,1722924640897,-650.0,0.00033485,2]
[334298080,1722924640906,-650.0,0.00033485,2]
[334298081,1722924640916,-650.0,0.00033485,2]
[334298083,1722924640926,-650.0,0.00033485,2]
[334298084,1722924640935,-650.0,0.00033485,2]
[334298085,1722924640946,-650.0,0.00033485,2]
[334298086,1722924640955,-650.0,0.00033485,2]
[334298087,1722924640965,-650.0,0.00033485,2]
[334298088,1722924640974,-650.0,0.00033485,2]
[334298089,1722924640994,-650.0,0.00033485,2]
[334298090,1722924641010,-650.0,0.00033485,2]
[334298091,1722924641031,-650.0,0.00033485,2]
[334298092,1722924641049,-650.0,0.00033485,2]
[334298093,1722924641069,-650.0,0.00033485,2]
[334298094,1722924641084,-353.0,0.00033485,2]
[334298095,1722924641101,-353.0,0.00033485,2]
[334298096,1722924641115,-353.0,0.00033485,2]
[334298097,1722924641133,-353.0,0.00033485,2]
[334298098,1722924641149,-353.0,0.00033485,2]
[334298099,1722924641167,-353.0,0.00033485,2]
[334298100,1722924641182,-353.0,0.00033485,2]
[334298101,1722924641196,-353.0,0.00033485,2]
[334298102,1722924641212,-353.0,0.00033485,2]
[334298103,1722924641228,-353.0,0.00033485,2]
[334298104,1722924641242,-353.0,0.00033485,2]
[334298105,1722924641256,-353.0,0.00033485,2]
[334298106,1722924641269,-353.0,0.00033485,2]
[334298107,1722924641286,-353.0,0.00033485,2]
[334298108,1722924641300,-650.0,0.00033485,2]
[334298109,1722924641315,-650.0,0.00033485,2]
[334298110,1722924641329,-650.0,0.00033485,2]
[334298111,1722924641342,-650.0,0.00033485,2]
[334298112,1722924641356,-650.0,0.00033485,2]
[334298113,1722924641370,-650.0,0.00033485,2]
[334298114,1722924641383,-650.0,0.00033485,2]
[334298115,1722924641398,-650.0,0.00033485,2]
[334298116,1722924641412,-650.0,0.00033485,2]
[334298117,1722924641426,-650.0,0.00033485,2]
[334298118,1722924641439,-650.0,0.00033485,2]
[334298119,1722924641453,-650.0,0.00033485,2]
[334298120,1722924641468,-650.0,0.00033485,2]
[334298121,1722924641482,-650.0,0.00033485,2]
[334298122,1722924641496,-353.0,0.00033485,2]
[334298123,1722924641510,-353.0,0.00033485,2]
[334298124,1722924641524,-353.0,0.00033485,2]
[334298125,1722924641541,-353.0,0.00033485,2]
[334298126,1722924641555,-353.0,0.00033485,2]
[334298127,1722924641569,-353.0,0.00033485,2]
[334298128,1722924641583,-353.0,0.00033485,2]
[334298129,1722924641598,-353.0,0.00033485,2]
[334298130,1722924641612,-353.0,0.00033485,2]
[334298131,1722924641625,-353.0,0.00033485,2]
[334298132,1722924641640,-353.0,0.00033485,2]
[334298133,1722924641654,-353.0,0.00033485,2]
[334298134,1722924641668,-353.0,0.00033485,2]
[334298135,1722924641681,-353.0,0.00033485,2]
[334298136,1722924641694,-650.0,0.00033485,2]
[334298137,1722924641709,-650.0,0.00033485,2]
[334298138,1722924641723,-650.0,0.00033485,2]
[334298139,1722924641736,-650.0,0.00033485,2]
[334298140,1722924641750,-650.0,0.00033485,2]
[334298141,1722924641764,-650.0,0.00033485,2]
[334298142,1722924641780,-650.0,0.00033485,2]
[334298143,1722924641794,-650.0,0.00033485,2]
[334298144,1722924641808,-650.0,0.00033485,2]
[334298145,1722924641823,-650.0,0.00033485,2]
[334298146,1722924641839,-650.0,0.00033485,2]
[334298147,1722924641853,-650.0,0.00033485,2]
[334298148,1722924641866,-650.0,0.00033485,2]
[334298149,1722924641880,-650.0,0.00033485,2]
[334298150,1722924641894,-353.0,0.00033485,2]
[334298151,1722924641908,-353.0,0.00033485,2]
[334298152,1722924641924,-353.0,0.00033485,2]
[334298153,1722924641934,-353.0,0.00033485,2]
[334298154,1722924641945,-353.0,0.00033485,2]
[334298155,1722924641955,-353.0,0.00033485,2]
[334298159,1722924642084,-353.0,0.00033485,2]
[334298160,1722924642150,-353.0,0.00033485,2]
[334298161,1722924642161,-353.0,0.00033485,2]
[334298162,1722924642170,-353.0,0.00033485,2]
[334298163,1722924642179,-353.0,0.00033485,2]
[334298164,1722924642188,-353.0,0.00033485,2]
[334298165,1722924642198,-353.0,0.00033485,2]
[334298166,1722924642207,-353.0,0.00033485,2]
[334298167,1722924642216,-650.0,0.00033485,2]
[334298168,1722924642225,-650.0,0.00033485,2]
[334298169,1722924642235,-650.0,0.00033485,2]
[334298170,1722924642245,-650.0,0.00033485,2]
[334298171,1722924642256,-650.0,0.00033485,2]
[334298172,1722924642266,-650.0,0.00033485,2]
[334298173,1722924642276,-650.0,0.00033485,2]
[334298174,1722924642288,-650.0,0.00033485,2]
[334298175,1722924642297,-650.0,0.00033485,2]
[334298176,1722924642307,-650.0,0.00033485,2]
[334298177,1722924642316,-650.0,0.00033485,2]
[334298178,1722924642326,-650.0,0.00033485,2]
[334298179,1722924642335,-650.0,0.00033485,2]
[334298180,1722924642345,-650.0,0.00033485,2]
[334298181,1722924642354,-237.998133,0.00033485,7]
[334298182,1722924642363,-151.0,0.00033485,7]
[334298183,1722924642373,-151.0,0.00033485,7]
[334298184,1722924642383,-151.0,0.00033485,7]
[334298187,1722924642393,-151.0,0.00033485,7]
[334298188,1722924642403,-151.0,0.00033485,7]
[334298189,1722924642412,-151.0,0.00033485,7]
[334298190,1722924642422,-151.0,0.00033485,7]
[334298191,1722924642432,-1113.240495,0.00033485,7]
[334298192,1722924642443,-1113.240495,0.00033485,7]
[334298193,1722924642454,-1113.240495,0.00033485,7]
[334298194,1722924642463,-1113.240495,0.00033485,7]
[334298195,1722924642473,-151.0,0.00033485,7]
[334298197,1722924642482,-151.0,0.00033485,7]
[334298198,1722924642491,-151.0,0.00033485,7]
[334298199,1722924642500,-466.262553,0.00033485,7]
[334298200,1722924642510,-466.262553,0.00033485,7]
[334298201,1722924642519,-466.262553,0.00033485,7]
[334298202,1722924642527,-466.262553,0.00033485,7]
[334298203,1722924642537,-151.0,0.00033485,7]
[334298204,1722924642546,-151.707734,0.00033485,7]
[334298205,1722924642555,-596.973784,0.00033485,7]
[334298206,1722924642564,-596.973784,0.00033485,7]
[334298207,1722924642574,-596.973784,0.00033485,7]
[334298208,1722924642583,-596.973784,0.00033485,7]
[334298209,1722924642592,-151.0,0.00033485,7]
[334298210,1722924642602,-151.0,0.00033485,7]
[334298211,1722924642611,-964.220237,0.00033485,7]
[334298212,1722924642621,-964.220237,0.00033485,7]
[334298214,1722924642631,-1124.554608,0.00033485,7]
[334298215,1722924642640,-1124.554608,0.00033485,7]
[334298217,1722924642650,-151.0,0.00033485,7]
[334298219,1722924642659,-151.0,0.00033485,7]
[334298220,1722924642668,-1175.930659,0.00033485,7]
[334298221,1722924642677,-1175.930659,0.00033485,7]
[334298222,1722924642686,-1175.930659,0.00033485,7]
[334298223,1722924642695,-1175.930659,0.00033485,7]
[334298224,1722924642705,-151.0,0.00033485,7]
[334298225,1722924642715,-151.0,0.00033485,7]
[334298226,1722924642724,-156.885027,0.00033485,7]
[334298227,1722924642733,-304.821958,0.00033485,7]
[334298228,1722924642742,-304.821958,0.00033485,7]
[334298229,1722924642751,-270.267308,0.00033485,7]
[334298230,1722924642760,-304.821958,0.00033485,7]
[334298231,1722924642770,-304.821958,0.00033485,7]
[334298232,1722924642781,-646.583938,0.00033485,7]
[334298233,1722924642791,-646.583938,0.00033485,7]
[334298234,1722924642801,-646.583938,0.00033485,7]
[334298235,1722924642810,-646.583938,0.00033485,7]
[334298236,1722924642820,-646.583938,0.00033485,7]
[334298237,1722924642831,-646.583938,0.00033485,7]
[334298238,1722924642842,-1265.018333,0.00033485,7]
[334298239,1722924642852,-1265.018333,0.00033485,7]
[334298240,1722924642861,-1265.018333,0.00033485,7]
[334298241,1722924642872,-1265.018333,0.00033485,7]
[334298242,1722924642882,-1265.018333,0.00033485,7]
[334298243,1722924642891,-1265.018333,0.00033485,7]
[334298244,1722924642900,-1752.432082,0.00033485,7]
[334298245,1722924642911,-1752.432082,0.00033485,7]
[334298246,1722924642921,-1752.432082,0.00033485,7]
[334298247,1722924642931,-1752.432082,0.00033485,7]
[334298248,1722924642940,-1752.432082,0.00033485,7]
[334298249,1722924642950,-1752.432082,0.00033485,7]
[334298250,1722924642959,-476.092422,0.00033485,7]
[334298251,1722924642969,-476.092422,0.00033485,7]
[334298252,1722924642978,-476.092422,0.00033485,7]
[334298253,1722924642987,-215.144831,0.00033485,7]
[334298254,1722924642997,-215.144831,0.00033485,7]
[334298255,1722924643007,-215.144831,0.00033485,7]
[334298256,1722924643016,-476.092422,0.00033485,7]
[334298257,1722924643025,-476.092422,0.00033485,7]
[334298258,1722924643036,-476.092422,0.00033485,7]
[334298259,1722924643046,-215.144831,0.00033485,7]
[334298260,1722924643056,-215.144831,0.00033485,7]
[334298261,1722924643065,-215.144831,0.00033485,7]
[334298262,1722924643074,-1343.276804,0.00033485,7]
[334298263,1722924643084,-1343.276804,0.00033485,7]
[334298264,1722924643093,-1343.276804,0.00033485,7]
[334298265,1722924643103,-1343.276804,0.00033485,7]
[334298266,1722924643112,-1343.276804,0.00033485,7]
[334298267,1722924643121,-1343.276804,0.00033485,7]
[334298268,1722924643130,-1113.240495,0.00033558,7]
[334298269,1722924643139,-1113.240495,0.00033558,7]
[334298270,1722924643149,-466.262553,0.00033558,7]
[334298271,1722924643158,-466.262553,0.00033558,7]
[334298272,1722924643168,-596.973784,0.00033558,7]
[334298273,1722924643177,-596.973784,0.00033558,7]
[334298274,1722924643187,-174.928572,0.00033558,7]
[334298275,1722924643196,-964.220237,0.00033558,7]
[334298276,1722924643205,-1124.554608,0.00033558,7]
[334298277,1722924643215,-1124.554608,0.00033558,7]
[334298278,1722924643224,-262.563636,0.00033558,7]
[334298279,1722924643233,-1175.930659,0.00033558,7]
[334298280,1722924643243,-1175.930659,0.00033558,7]
[334298281,1722924643252,-151.0,0.00033558,7]
[334298282,1722924643261,-304.821958,0.00033558,7]
[334298283,1722924643271,-304.821958,0.00033558,7]
[334298284,1722924643281,-646.583938,0.00033558,7]
[334298285,1722924643291,-646.583932,0.00033558,7]
[334298286,1722924643300,-1265.018333,0.00033558,7]
[334298287,1722924643309,-1265.018329,0.00033558,7]
[334298288,1722924643318,-1752.432082,0.00033558,7]
[334298289,1722924643329,-1752.432089,0.00033558,7]
[334298290,1722924643338,-476.092422,0.00033558,7]
[334298291,1722924643348,-215.144831,0.00033558,7]
[334298292,1722924643357,-476.09243,0.00033558,7]
[334298293,1722924643366,-215.144827,0.00033558,7]
[334298294,1722924643376,-1343.276804,0.00033558,7]
[334298295,1722924643386,-1343.276809,0.00033558,7]
[334298296,1722924643396,-1113.240495,0.00033567,7]
[334298297,1722924643406,-1113.240495,0.00033567,7]
[334298298,1722924643416,-466.262553,0.00033567,7]
[334298299,1722924643426,-466.262553,0.00033567,7]
[334298300,1722924643435,-596.973784,0.00033567,7]
[334298301,1722924643445,-596.973784,0.00033567,7]
[334298302,1722924643455,-964.220237,0.00033567,7]
[334298303,1722924643464,-964.220237,0.00033567,7]
[334298304,1722924643474,-964.220237,0.00033567,7]
[334298305,1722924643483,-964.220237,0.00033567,7]
[334298306,1722924643494,-1124.554608,0.00033567,7]
[334298307,1722924643504,-1124.554608,0.00033567,7]
[334298308,1722924643513,-1124.554608,0.00033567,7]
[334298309,1722924643522,-1124.554608,0.00033567,7]
[334298310,1722924643534,-1124.554608,0.00033567,7]
[334298311,1722924643543,-1124.554608,0.00033567,7]
[334298312,1722924643553,-1175.930659,0.00033567,7]
[334298313,1722924643563,-1175.930659,0.00033567,7]
[334298314,1722924643572,-1175.930659,0.00033567,7]
[334298315,1722924643582,-1175.930665,0.00033567,7]
[334298316,1722924643591,-151.0,0.00033567,7]
[334298317,1722924643601,-151.0,0.00033567,7]
[334298318,1722924643610,-304.821958,0.00033567,7]
[334298319,1722924643619,-304.821958,0.00033567,7]
[334298320,1722924643629,-304.821958,0.00033567,7]
[334298321,1722924643639,-304.821955,0.00033567,7]
[334298322,1722924643650,-353.0,0.00033568,2]
[334298323,1722924643660,-353.0,0.00033568,2]
[334298324,1722924643669,-353.0,0.00033568,2]
[334298325,1722924643679,-353.0,0.00033568,2]
[334298326,1722924643688,-353.0,0.00033568,2]
[334298327,1722924643698,-353.0,0.00033568,2]
[334298328,1722924643709,-353.0,0.00033568,2]
[334298329,1722924643720,-353.0,0.00033568,2]
[334298330,1722924643730,-353.0,0.00033568,2]
[334298331,1722924643743,-353.0,0.00033568,2]
[334298332,1722924643753,-353.0,0.00033568,2]
[334298333,1722924643762,-353.0,0.00033568,2]
[334298334,1722924643771,-353.0,0.00033568,2]
[334298335,1722924643785,-353.0,0.00033568,2]
[334298336,1722924643794,-650.0,0.00033568,2]
[334298337,1722924643803,-650.0,0.00033568,2]
[334298338,1722924643813,-650.0,0.00033568,2]
[334298339,1722924643822,-650.0,0.00033568,2]
[334298340,1722924643833,-650.0,0.00033568,2]
[334298341,1722924643846,-650.0,0.00033568,2]
[334298342,1722924643855,-650.0,0.00033568,2]
[334298343,1722924643864,-650.0,0.00033568,2]
[334298344,1722924643874,-650.0,0.00033568,2]
[334298345,1722924643884,-650.0,0.00033568,2]
[334298346,1722924643893,-650.0,0.00033568,2]
[334298347,1722924643903,-650.0,0.00033568,2]
[334298348,1722924643912,-650.0,0.00033568,2]
[334298349,1722924643927,-650.0,0.00033568,2]
[334298350,1722924643938,-242.51,0.000336,30]
[334298351,1722924643948,-163.246091,0.00033626,2]
[334298352,1722924643958,-151.0,0.00034274,120]
[334298353,1722924643967,-456.75587633,0.0003489,2]
[334298354,1722924643977,-202.43,0.0003497,7]
[334298355,1722924643987,-150.5,0.0003498,7]
[334298356,1722924643997,-150.5,0.0003499,7]
[334298357,1722924644008,-151.0,0.0003499,7]
[334298358,1722924644019,-153.290514,0.0003499,7]
[334298359,1722924644029,-1000.0,0.00035,35]
[334298360,1722924644044,-2009.67118217,0.00035076,2]
[334298361,1722924644055,-4893.06,0.000353,14]
[334298362,1722924644064,-661.41,0.000353,14]
[334298363,1722924644073,-294.2886399,0.00035342,2]
[334298364,1722924644082,-214.9129412,0.00035342,2]
[334298365,1722924644091,-307.5150384,0.00035342,2]
[334298366,1722924644101,-596.973784,0.00036164,7]
[334298367,1722924644110,-596.973784,0.00036164,7]
[334298368,1722924644119,-306.0,0.00036164,2]
[334298369,1722924644128,-294.3442761,0.00036164,2]
[334298370,1722924644140,-413.6325898,0.00036164,2]
[334298371,1722924644149,-294.3442761,0.00036164,2]
[334298372,1722924644159,-207.0547247,0.00036164,2]
[334298373,1722924644168,-207.0547247,0.00036164,2]
[334298374,1722924644177,-294.3442761,0.00036164,2]
[334298375,1722924644187,-293.9177954,0.00036164,2]
[334298376,1722924644196,-206.8447001,0.00036164,2]
[334298377,1722924644205,-294.1746601,0.00036164,2]
[334298378,1722924644214,-1411.0,0.0003625,2]
[334298379,1722924644223,-4180.44736332,0.00036337,2]
[334298380,1722924644233,-151.0,0.00036411,120]
[334298381,1722924644242,-153.034162,0.00036589,7]
[334298382,1722924644251,-1183.077678,0.00036589,7]
[334298383,1722924644261,-1183.077678,0.00036589,7]
[334298384,1722924644270,-151.0,0.00036589,7]
[334298385,1722924644281,-151.0,0.00036589,7]
[334298386,1722924644291,-964.220237,0.00036589,7]
[334298387,1722924644301,-964.220237,0.00036589,7]
[334298388,1722924644311,-1124.554608,0.00036589,7]
[334298389,1722924644320,-1124.554618,0.00036589,7]
[334298390,1722924644431,-529.239478,0.0003659,7]
[334298391,1722924644442,-151.0,0.0003659,7]
[334298392,1722924644452,-529.239478,0.0003659,7]
[334298393,1722924644461,-1113.240495,0.0003659,7]
[334298394,1722924644471,-1113.240495,0.0003659,7]
[334298395,1722924644480,-1113.240495,0.0003659,7]
[334298396,1722924644489,-1113.240495,0.0003659,7]
[334298397,1722924644499,-466.262553,0.0003659,7]
[334298398,1722924644508,-466.262553,0.0003659,7]
[334298399,1722924644517,-466.262553,0.0003659,7]
[334298400,1722924644526,-466.262553,0.0003659,7]
[334298401,1722924644539,-596.973784,0.0003659,7]
[334298402,1722924644549,-596.973784,0.0003659,7]
[334298403,1722924644558,-1000.0,0.0003659,19]
[334298404,1722924644567,-1000.0,0.0003659,19]
[334298405,1722924644577,-1000.0,0.0003659,19]
[334298406,1722924644586,-1000.0,0.0003659,19]
[334298407,1722924644596,-1000.0,0.0003659,19]
[334298408,1722924644605,-1000.0,0.0003659,19]
[334298409,1722924644614,-1000.0,0.0003659,19]
[334298410,1722924644623,-1000.0,0.0003659,19]
[334298411,1722924644632,-1000.0,0.0003659,19]
[334298412,1722924644642,-1000.0,0.0003659,19]
[334298413,1722924644651,-1000.0,0.0003659,19]
[334298414,1722924644660,-1000.0,0.0003659,19]
[334298415,1722924644669,-1000.0,0.0003659,19]
[334298416,1722924644678,-1000.0,0.0003659,19]
[334298417,1722924644688,-1000.0,0.0003659,19]
[334298418,1722924644698,-1000.0,0.0003659,19]
[334298419,1722924644707,-1000.0,0.0003659,19]
[334298420,1722924644716,-1000.0,0.0003659,19]
[334298421,1722924644725,-1000.0,0.0003659,19]
[334298422,1722924644735,-1000.0,0.0003659,19]
[334298423,1722924644744,-1000.0,0.0003659,19]
[334298424,1722924644753,-1000.0,0.0003659,19]
[334298426,1722924644763,-1000.0,0.0003659,19]
[334298428,1722924644773,-1000.0,0.0003659,19]
[334298430,1722924644784,-1000.0,0.0003659,19]
[334298431,1722924644797,-1000.0,0.0003659,19]
[334298433,1722924644806,-1000.0,0.0003659,19]
[334298435,1722924644815,-1000.0,0.0003659,19]
[334298437,1722924644824,-1000.0,0.0003659,19]
[334298439,1722924644837,-1000.0,0.0003659,19]
[334298441,1722924644846,-1000.0,0.0003659,19]
[334298443,1722924644855,-1000.0,0.0003659,19]
[334298445,1722924644863,-1000.0,0.0003659,19]
[334298447,1722924644873,-1000.0,0.0003659,19]
[334298449,1722924644883,-1000.0,0.0003659,19]
[334298451,1722924644893,-1000.0,0.0003659,19]
[334298453,1722924644902,-1000.0,0.0003659,19]
[334298455,1722924644912,-1000.0,0.0003659,19]
[334298457,1722924644922,-1000.0,0.0003659,19]
[334298459,1722924644932,-1000.0,0.0003659,19]
[334298461,1722924644941,-1089.373123,0.0003659,19]
[334298463,1722924644951,-964.220237,0.0003659,7]
[334298465,1722924644960,-964.22024,0.0003659,7]
[334298467,1722924644970,-19361.05712876,0.000366,2]
[334298469,1722924644979,-10000.0,0.000366,30]
[334298470,1722924644988,-151.0,0.000366,7]
[334298472,1722924644997,-151.0,0.000366,7]
[334298474,1722924645007,-151.158947,0.000366,7]
[334298476,1722924645016,-1183.077678,0.000366,7]
[334298478,1722924645025,-1183.077678,0.000366,7]
[334298480,1722924645039,-529.239478,0.000366,7]
[334298482,1722924645048,-151.0,0.000366,7]
[334298484,1722924645057,-529.239478,0.000366,7]
[334298486,1722924645066,-154.29401,0.000366,7]
[334298488,1722924645076,-203.0,0.000366,30]
[334298490,1722924645085,-151.0,0.000366,7]
[334298492,1722924645094,-151.0,0.000366,7]
[334298494,1722924645104,-1113.240495,0.000366,7]
[334298496,1722924645114,-1113.240495,0.000366,7]
[334298498,1722924645123,-1113.240495,0.000366,7]
[334298500,1722924645133,-1113.24048586,0.000366,7]
[334298502,1722924645142,-151.0,0.000366,7]
[334298504,1722924645152,-151.0,0.000366,7]
[334298506,1722924645162,-466.262553,0.000366,7]
[334298508,1722924645171,-466.262553,0.000366,7]
[334298510,1722924645181,-466.262553,0.000366,7]
[334298512,1722924645191,-466.26255576,0.000366,7]
[334298514,1722924645201,-596.973784,0.000366,7]
[334298516,1722924645211,-596.973784,0.000366,7]
[334298518,1722924645220,-596.973784,0.000366,7]
[334298520,1722924645229,-596.973787,0.000366,7]
[334298522,1722924645238,-436354.29343772,0.000366,2]
[334298556,1722924645537,-58556.86785618,0.000366,2]
[334298558,1722924645547,-326.46688912,0.000366,5]
[334298561,1722924645556,-200.0,0.000366,5]
[334298564,1722924645565,-150.0,0.00036828,2]
[334298566,1722924645575,-1000.0,0.00037,37]
[334298568,1722924645584,-242.51,0.000374,30]
[334298570,1722924645594,-163.05263509,0.00037489,2]
[334298572,1722924645603,-151.0,0.0003749,7]
[334298575,1722924645613,-151.0,0.0003749,7]
[334298578,1722924645623,-1183.077678,0.0003749,7]
[334298581,1722924645633,-1183.077678,0.0003749,7]
[334298583,1722924645642,-529.239478,0.0003749,7]
[334298584,1722924645651,-151.0,0.0003749,7]
[334298586,1722924645661,-381.58845225,0.0003749,7]
[334298622,1722924645924,-500.0,0.00021895,2]
[334298625,1722924645934,-290.03128102,0.00021895,2]
[334298628,1722924645944,-500.0,0.00021895,2]
[334298631,1722924645953,-500.0,0.00021895,2]
[334298634,1722924645963,-500.0,0.00021895,2]
[334298637,1722924645972,-500.0,0.00021895,2]
[334298640,1722924645981,-464.86693357,0.00021895,2]
[334298642,1722924645993,-35.13306643,0.00021895,2]
[334298644,1722924646002,-500.0,0.00021895,2]
[334298646,1722924646012,-482.15905321,0.00021895,2]
[334298661,1722924646143,-380.68601019,0.00021896,2]
[334298664,1722924646161,-1485.68005122,0.00021896,2]
[334298665,1722924646170,-194.53266694,0.00021916,2]
[334298667,1722924646181,-8720.68,0.00028097,3]
[334298669,1722924646190,-1648.72616838,0.00028135,21]
[334298671,1722924646200,-200.0,0.00033573,2]
[334298673,1722924646210,-400.0,0.00034942,2]
[334298676,1722924646220,-600.0,0.00036946,2]
[334298677,1722924646230,-147.65102575,0.0003749,7]
[334298679,1722924646238,-151.0,0.0003749,7]
[334298681,1722924646248,-151.0,0.0003749,7]
[334298683,1722924646258,-2721.57642679,0.000375,16]
[334298686,1722924646270,-9421.8,0.000375,16]
[334298769,1722924693470,225.359616,0.00014247,2]
[334298834,1722925146412,700.0,0.00027,120]
[334299022,1722925634200,-164.168274,0.00014247,2]
[334299023,1722925634223,-294.7481965,0.00015035,2]
[334299024,1722925634245,-200.82536947,0.00015114,2]
[334299025,1722925635215,-578.91023915,0.00015114,2]
[334299026,1722925637116,-2372.05534928,0.00015114,2]
[334299027,1722925637141,-185.207356,0.00015353,2]
[334299028,1722925637164,-3000.0,0.00015429,2]
[334299029,1722925637186,-185.207356,0.00015553,2]
[334299030,1722925637207,-2124.35920477,0.00015708,2]
[334299031,1722925637230,-236.29067024,0.00015708,2]
[334299032,1722925637251,-154.86719212,0.00015708,2]
[334299033,1722925637272,-414.62646568,0.00015708,2]
[334299034,1722925637293,-849.47006365,0.00015712,2]
[334299035,1722925637312,-154.85986006,0.00015712,2]
[334299036,1722925637335,-185.207356,0.00015753,2]
[334299037,1722925637356,-185.207356,0.00015953,2]
[334299038,1722925637379,-185.207356,0.00016153,2]
[334299039,1722925637402,-648.24315649,0.00017178,2]
[334299040,1722925638131,-1084.45183868,0.00017178,2]
[334299041,1722925638156,-227.93158002,0.00017182,2]
[334299042,1722925638179,-189.23570072,0.00017265,2]
[334299043,1722925638203,-500.0,0.00017265,2]